Cogmind - Beta 14 @@@ ROGUE MODE // 2025.03.28 @ 11:45:54 Player: Zeta Lockhart Result: Destroyed by Y-45 Defender with Heavy Assault Rifle Performance ------------- Evolutions (1) 500 Regions Visited (3) 600 Robots Destroyed (41) 205 Value Destroyed (797) 797 Prototype IDs (0) 0 Alien Tech Used (0) 0 Bonus (0) 0 TOTAL SCORE: 2102 Bonus ------- None Cogmind --------- Core Integrity 0/400 Matter 290/300 Energy 100/100 System Corruption 11% Temperature Critical (644) Movement Rolling (80) Location -9/Storage Parts ------- > --- POWER (1) -------- (None) > --- PROPULSION (2) --- Wheel > --- UTILITY (3) ------ Small Storage Unit > --- WEAPON (3) ------- Small Laser Small Laser > --- INVENTORY (8) ---- Ion Engine Wheel Wheel Peak State ------------ > --- POWER ------------ Ion Engine > --- PROPULSION ------- Wheel Armored Wheel > --- UTILITY ---------- Heat Sink Heat Sink Small Storage Unit > --- WEAPON ----------- EM Pulse Gun EM Pulse Gun Small Laser > --- INVENTORY -------- Ion Engine Light Nuclear Core Wheel Wheel Small Laser [Rating: 10] Favorites ----------- Power Ion Engine Engine Ion Engine Power Core Light Nuclear Core Propulsion Wheel Wheel Wheel Utility Small Storage Unit Device Heat Sink Storage Small Storage Unit Weapon EM Pulse Gun Energy Gun EM Pulse Gun Ballistic Gun Light Assault Rifle Build | -11 -10 -9 -9 ------- Run | Yrd Mat Mat Sto Slots Evolved 2 | . . 2 . Power . | . . . . Propulsion . | . . . . Utility 1 | . . 1 . Weapon 1 | . . 1 . Parts Attached 25 | 6 6 8 5 Power 5 | 1 2 1 1 Engine 4 | 1 2 1 . Core 1 | . . . 1 Reactor . | . . . . Propulsion 7 | 2 1 2 2 Treads . | . . . . Leg . | . . . . Wheel 7 | 2 1 2 2 Hover . | . . . . Flight . | . . . . Utility 4 | 1 1 2 . Device 3 | . 1 2 . Storage 1 | 1 . . . Processor . | . . . . Hackware . | . . . . Protection . | . . . . Artifact . | . . . . Weapon 9 | 2 2 3 2 Energy Gun 7 | 2 . 3 2 Energy Cannon . | . . . . Ballistic Gun 2 | . 2 . . Ballistic Cannon . | . . . . Launcher . | . . . . Special Weapon . | . . . . Impact Weapon . | . . . . Slashing Weapon . | . . . . Piercing Weapon . | . . . . Special Melee Weapon . | . . . . Unidentified Prototypes . | . . . . Parts Lost 15 | . 2 5 8 Power 4 | . 1 1 2 Propulsion 3 | . 1 1 1 Utility 3 | . . 1 2 Weapon 5 | . . 2 3 Highest Loss Streak 8 | . 1 5 8 To Critical Strikes . | . . . . Average Slot Usage (%) 88 | . 89 87 89 Engine 11 | . 13 10 7 Wheel 23 | . 27 19 21 Device 11 | . 4 16 19 Storage 12 | . 14 11 11 Energy Gun 15 | . 4 27 28 Ballistic Gun 13 | . 23 4 . Peak Build Rating 10 | 6 8 9 10 Average Rating 7 | 4 6 8 9 On Entrance 5 | . 6 8 8 Naked Turns . | . . . . Heaviest Build 17 | 12 13 17 17 Greatest Support 26 | 26 26 26 22 Greatest Overweight (x) 1 | . . 1 . Average Overweight (x) . | . . . . Largest Inventory Capacity 8 | 8 8 8 8 Average Capacity 7 | 6 8 8 8 Most Carried 8 | 5 8 7 6 Average Carried 5 | 2 6 5 4 Final Capacity 8 | 8 8 8 8 Final Carried 8 | 4 8 6 3 Class Distribution -------------------- 57% | Mutant 31% | Scavenger-Gunner 6% | Gunner 5% | Scavenger-Mutant Dominant Class ---------------- Mutant | -10/Materials Scavenger-Gunner | -9/Materials Scavenger-Gunner | -9/Storage Resources | -11 -10 -9 -9 ----------- Run | Yrd Mat Mat Sto Matter Collected 552 | 260 206 86 . Remotely . | . . . . Salvage Created 1710 | 204 720 576 210 Parts 105 | 12 46 39 8 Haulers Intercepted 2 | . 2 . . Recyclers Shooed 9 | . 8 1 . Parts Field Recycled . | . . . . Retrieved Matter . | . . . . Parts Self-Destructed . | . . . . Prevented . | . . . . Kills | -11 -10 -9 -9 ------- Run | Yrd Mat Mat Sto Combat Hostiles Destroyed 16 | . 5 7 4 Guns 15 | . 5 7 3 AOE 1 | . . . 1 Classes Destroyed 9 | 2 5 1 1 Worker 3 | . 1 2 . Builder 5 | . 3 2 . Tunneler 6 | 5 1 . . Hauler 2 | . 2 . . Recycler 6 | 1 3 2 . Watcher 3 | . 2 1 . Grunt 14 | . 5 6 3 Brawler 1 | . . 1 . Sentry 1 | . . . 1 Best Kill Streak 11 | 6 5 11 2 Combat Bots Only 4 | . 2 4 2 Max Kills in Single Turn 2 | 1 1 2 1 Gunslinging . | . . . . Exploded 1 | . . . 1 Melee . | . . . . Uniques/NPCs Destroyed . | . . . . Combat | -11 -10 -9 -9 -------- Run | Yrd Mat Mat Sto Hostile Shots Fired 155 | . 55 36 64 Missed 43 | . 18 9 16 Damage Taken 1691 | . 500 387 804 Core 624 | . 210 144 270 Absorbed by Shields . | . . . . Core Remaining (%) 58 | 100 16 . . Volleys Fired 175 | 8 97 28 42 Largest 3 | 2 2 3 3 Hottest 120 | 80 80 120 120 Shots Fired 389 | 16 194 73 106 Gun 389 | 16 194 73 106 Cannon . | . . . . Launcher . | . . . . Special . | . . . . Kinetic 182 | . 166 16 . Thermal 76 | . . 27 49 Explosive . | . . . . Electromagnetic 131 | 16 28 30 57 Robot Hit Streak 9 | 6 6 9 5 Robot Miss Streak 8 | 2 8 4 2 Penetration Max . | . . . . Secondary Targets 5 | . 1 2 2 Max Gunslinging Chain 1 | . 1 1 1 Shots Hit Robots 172 | 10 95 41 26 Core Hits 78 | 7 38 23 10 Critical Kills . | . . . . Critical Parts Destroyed . | . . . . Critical Strikes . | . . . . Melee Attacks . | . . . . Impact . | . . . . Slashing . | . . . . Piercing . | . . . . Sneak Attacks . | . . . . Combat Hostiles . | . . . . Follow-up Attacks . | . . . . Damage Inflicted 1887 | 162 818 583 324 Guns 1747 | 140 818 485 304 Cannons . | . . . . Explosions 140 | 22 . 98 20 Melee . | . . . . Ramming . | . . . . Kinetic 824 | . 727 97 . Thermal 489 | 22 . 260 207 Explosive . | . . . . Electromagnetic 574 | 140 91 226 117 Impact . | . . . . Slashing . | . . . . Piercing . | . . . . Highest Corruption 11 | . . 11 11 Average Corruption 10 | . . 10 11 Corruption Purged . | . . . . Corruption Blocked . | . . . . Effects 17 | . . 7 10 Message Errors 1 | . . . 1 Matter Fused 1 | . . 1 . Heat Flow Errors 3 | . . . 3 Energy Discharges 4 | . . 3 1 Data Loss (minor) 3 | . . 2 1 Alerts 2 | . . 1 1 Weapon Failures 3 | . . . 3 Overload Shots . | . . . . Overflow Damage . | . . . . Projectiles . | . . . . Explosions . | . . . . Melee . | . . . . Knockbacks . | . . . . Impact . | . . . . Kinetic . | . . . . Secondary . | . . . . Self-Inflicted Damage 14 | . . . 14 Shots 1 | . . . 1 Rammed . | . . . . Targets Rammed . | . . . . Kicked . | . . . . Crushed . | . . . . Highest Temperature 675 | 72 108 149 675 Average Temperature 86 | 29 28 65 211 Received Heat Transfer 861 | . 333 147 381 Effects 3 | . . . 3 Shutdowns 1 | . . . 1 Damage (core) 2 | . . . 2 Siege Activations . | . . . . Robots Corrupted . | . . . . Combat Hostiles . | . . . . Parts Fried 1 | . 1 . . Impact Corruptions . | . . . . Robots Melted . | . . . . Combat Hostiles . | . . . . Parts Melted 3 | . . . 3 Heat Transferred 950 | 50 . 475 425 Parts Sabotaged . | . . . . Parts Stolen . | . . . . Parts Stripped . | . . . . Power Chain Reactions 3 | 1 . 1 1 Alert | -11 -10 -9 -9 ------- Run | Yrd Mat Mat Sto Peak Influence 207 | 30 207 203 190 Initial 85 | . 19 26 85 Average 83 | 9 94 66 110 Maximum Alert Level 1 | . 1 1 . Low Security (%) 96 | 100 94 94 100 Level 1 3 | . 5 5 . Level 2 . | . . . . Level 3 . | . . . . Level 4 . | . . . . Level 5 . | . . . . High Security . | . . . . Max Security . | . . . . Squads Dispatched 1 | . . 1 . Investigation . | . . . . Extermination . | . . . . Reinforcement 1 | . . 1 . Assault . | . . . . Garrison . | . . . . Intercept . | . . . . Searches Triggered . | . . . . Construction Impeded . | . . . . Haulers Reinforced . | . . . . Active Scanning Responses . | . . . . Cargo Convoy Interrupts . | . . . . Stealth | -11 -10 -9 -9 --------- Run | Yrd Mat Mat Sto Distress Signals 3 | . 2 . 1 Communications Jammed . | . . . . Distress Signals . | . . . . Times Spotted 27 | . 12 8 7 Peak Tracking Total 6 | . 4 3 6 Tactical Retreats 3 | . 2 . 1 Traps | -11 -10 -9 -9 ------- Run | Yrd Mat Mat Sto Traps Triggered . | . . . . Indirectly . | . . . . Trap Hack Attempts . | . . . . Triggered . | . . . . Disarmed . | . . . . Reprogrammed . | . . . . Reused . | . . . . Traps Extracted . | . . . . Installed . | . . . . Triggered . | . . . . Machines | -11 -10 -9 -9 ---------- Run | Yrd Mat Mat Sto Machines Disabled 3 | . 1 . 2 Max in Single Turn 2 | . 1 . 2 Machines Repaired . | . . . . Machines Dismantled . | . . . . Machines Sabotaged . | . . . . Overloaded Fab Kills . | . . . . Hacking | -11 -10 -9 -9 --------- Run | Yrd Mat Mat Sto Machines Accessed . | . . . . Terminals . | . . . . Fabricators . | . . . . Repair Stations . | . . . . Recycling Units . | . . . . Scanalyzers . | . . . . Garrison Access . | . . . . Total Hacks . | . . . . Successful . | . . . . Failed . | . . . . Catastrophic . | . . . . Database Lockouts . | . . . . Manual . | . . . . Terminals . | . . . . Fabricators . | . . . . Repair Stations . | . . . . Recycling Units . | . . . . Scanalyzers . | . . . . Garrison Access . | . . . . Terminal Hacks . | . . . . Fabricator Hacks . | . . . . Repair Station Hacks . | . . . . Recycling Unit Hacks . | . . . . Scanalyzer . | . . . . Garrison Access Hacks . | . . . . Unauthorized Hacks . | . . . . Terminals . | . . . . Fabricators . | . . . . Repair Stations . | . . . . Recycling Units . | . . . . Scanalyzers . | . . . . Garrison Access . | . . . . Data Cores Recovered . | . . . . Used . | . . . . Hacking Detections . | . . . . Full Trace Events . | . . . . Feedback Events . | . . . . Feedback Blocked . | . . . . Robot Schematics Acquired . | . . . . Robots Built . | . . . . Authchips . | . . . . Time . | . . . . Total Robot Build Rating . | . . . . Part Schematics Acquired . | . . . . Parts Built . | . . . . Authchips . | . . . . Time . | . . . . Total Part Build Rating . | . . . . Parts Repaired . | . . . . Time . | . . . . Parts Recycled . | . . . . Recycled Matter . | . . . . Retrieved Matter . | . . . . Retrieved Components . | . . . . Parts Scanalyzed . | . . . . Part Schematics Acquired . | . . . . Parts Damaged . | . . . . Bothacking | -11 -10 -9 -9 ------------ Run | Yrd Mat Mat Sto Used RIF Installer . | . . . . Robots Hacked . | . . . . Non-combat . | . . . . Combat . | . . . . Robot Hacks Applied . | . . . . Relay Couplers Released . | . . . . Fabnet Peak Effective % . | . . . . Robots Rewired . | . . . . Allies Hacked . | . . . . Hacks Repelled . | . . . . Allies | -11 -10 -9 -9 -------- Run | Yrd Mat Mat Sto Total Allies . | . . . . Largest Group . | . . . . Highest-Rated Group . | . . . . Highest-Rated Ally . | . . . . Total Orders . | . . . . Ally Attacks . | . . . . Total Damage . | . . . . Kills . | . . . . Allies Corrupted . | . . . . Allies Melted . | . . . . Intel | -11 -10 -9 -9 ------- Run | Yrd Mat Mat Sto Robot Analysis Total . | . . . . Derelict Logs Recovered . | . . . . Drone Launches . | . . . . Drone Recoveries . | . . . . Exploration | -11 -10 -9 -9 ------------- Run | Yrd Mat Mat Sto Turns Passed 1010 | 94 484 219 213 Spaces Moved 474 | 66 231 125 52 Core 13 | 13 . . . Treads . | . . . . Legs . | . . . . Wheels 461 | 53 231 125 52 Hover . | . . . . Flight . | . . . . Fastest Speed 50 | 50 90 80 85 Average Speed 88 | 82 90 90 85 Slowest Speed 100 | 90 100 95 85 Overloaded Moves . | . . . . Propulsion Burnouts . | . . . . Robots Hopped . | . . . . Cave-ins Triggered . | . . . . Exploration Rate (%) 19 | 4 41 17 16 Regions Visited 3 Branch Regions 1 Pre-discovered Areas . | . . . . Known Exits Taken . | . . . . Unknown Exits Taken 3 | 1 1 1 . Scrap Searched . | . . . . Spaces Dug . | . . . . Terrain Destroyed 7 | 3 . 4 . Melee . | . . . . Projectile . | . . . . AOE 7 | 3 . 4 . Terrain Rammed . | . . . . Walls Destroyed . | . . . . Machines Disabled . | . . . . Actions | -11 -10 -9 -9 --------- Run | Yrd Mat Mat Sto Total 742 | 89 344 179 130 Wait 44 | . 5 9 30 Move 471 | 65 230 124 52 Hop . | . . . . Pick Up 23 | 10 5 7 1 Fast Attach 2 | . 2 . . Attach 19 | 6 1 8 4 Detach . | . . . . Swap 4 | . 3 . 1 Drop 4 | . 1 3 . Fire 175 | 8 97 28 42 Melee . | . . . . Ram . | . . . . Kick . | . . . . Crush . | . . . . Escape Stasis . | . . . . Rewire . | . . . . Trap . | . . . . Miscellaneous . | . . . . Route ------- -11/Scrapyard -10/Materials -9/Materials -9/Storage History --------- Turn | Location | Event 29 | -11/Scrapyard | Discovered new exit (range 15) 95 | -11/Scrapyard | Entered Materials 314 | -10/Materials | Build established: Mutant 494 | -10/Materials | Discovered new exit (range 14) 506 | -10/Materials | Core integrity fell below 50% 530 | -10/Materials | Core integrity fell below 20% 579 | -10/Materials | Entered another Materials area 579 | -9/Materials | Evolved 2 slots: Utility x1, Weapon x1 628 | -9/Materials | System corruption reached 10% 658 | -9/Materials | Lost 5 parts (1p1n1u2w) 753 | -9/Materials | Discovered new exit (range 7) 798 | -9/Materials | Entered Storage 934 | -9/Storage | Build established: Scavenger-Gunner 989 | -9/Storage | Core integrity fell below 50% 1003 | -9/Storage | Core integrity fell below 20% 1011 | -9/Storage | Destroyed by Y-45 Defender with Heavy Assault Rifle Last Messages --------------- 00990_ Aluminum Leg melted. 00990_ Particle Gun melted. 00990_ G-47 Trooper destroyed. 00990_ Switching to secondary target: Y-45 Defender. 00993_ R-06 Scavenger collects Lgt. Nuclear Core. 00994_ Heat Sink destroyed. 00994_ Critical hit (Burn: +37). 00997_ R-06 Scavenger collects Sml. Laser. 00999_ Critical hit (Burn: +37). 01001_ System corrupted: Heat flow error (+285). 01002_ Overheating: Core damaged (-64). 01002_ Arm. Wheel destroyed. 01002_ Beam Rifle melted. 01002_ Y-45 Defender destroyed. 01002_ Switching to secondary target: Y-45 Defender. 01004_ Power failure, Lgt. Nuclear Core shutdown. 01005_ Critical hit (Burn: +37). 01006_ Overheating: Core damaged (-48). 01008_ Lgt. Nuclear Core destroyed. 01008_ System corrupted: Sml. Laser failed to cycle. Map ----- +----------------------------------------------------+ | ?????????????????????????????????????????????????? | | ?????????????????????????????????????????????????? | | ?????????????????????????????????????????????????? | | ?????????????????????????????????????????????????? | | ?????????????????????????????????????????????????? | | ?????????????????????????????????????????????????? | | ?????????????????????????????????????????????????? | | ?????????????????????????????????????????????????? | | ?????????????????????????????????????????????????? | | ?????????????????????????????????????????????????? | | ?????????????????????????????????????????????????? | | ?????????????????????????????????????????????????? | | ?????????????????????????????????????????????????? | | ?????????????????????????????????????????????????? | | ???????????????????????????+#????????????????????? | | ??????????????????????????? ????????????????????? | | ??????????????????????????? ????????????????????? | | ??????????????????????????? ????????????????????? | | ???????????????????????????# #???##+##???????????? | | ???????????????????????????# #???# #???????????? | | ???????????????????????????# ##### #???????????? | | ???????????????????????????# #???????????? | | ???????????????????######### ##??????????? | | ???????????????????# ## """ "#??????????? | | ???????????????????+ ## """ T#??????????? | | ???????????????????# @# " "#??????????? | | ???????????????????# %Y% #?????????""" | | ???????????????? + ! # % #????????? | | ???????????? # %= # """" ###########+# | | ??????????? ###+#### """ | | ???????????? """"" | | ?????????????? | | ?????????????? #####+# | | ?????????????? +?????? | | ??????????????? ###+#####+############?????? | | ???????????????#### ?????????? ????????????????? | | ??????????????????# ???????????""????????????????? | | ??????????????????#????????????"""???????????????? | | ????????????????????????????????""???????????????? | | ?????????????????????????????????????????????????? | | ?????????????????????????????????????????????????? | | ?????????????????????????????????????????????????? | | ?????????????????????????????????????????????????? | | ?????????????????????????????????????????????????? | | ?????????????????????????????????????????????????? | | ?????????????????????????????????????????????????? | | ?????????????????????????????????????????????????? | | ?????????????????????????????????????????????????? | | ?????????????????????????????????????????????????? | | | +----------------------------------------------------+ Best States ------------- Heat Dissipation 48 Energy Generation 14 Energy Capacity 250 Matter Stores 300 Matter Capacity 300 Sight Range 16 Terrain Scan Density 10 Evasion (%) 50 Item Schematics ----------------- None Robot Schematics ------------------ None Fabricated ------------ Nothing Alien Tech Used ----------------- None Achievements -------------- None Challenges ------------ None Game ------ Seed NeutronLaserBattery Manual? 0 Play Time 00:09:29 Cumulative 73.2 hours Start 2025.03.28 @ 11:37:50 End 2025.03.28 @ 11:45:54 Sessions 1 Manual Loads 0 Difficulty Rogue Special Mode None Game No. 72 Rogue 72 Adventurer 0 Explorer 0 Win Type - Total 0 Types 0/0/0/0/0/0/0/0/0 Lore% 7 Gallery% 37 Achievement% 31 Wizard Run 0 Options --------- Layout 0 ASCII 0 Keyboard 0 Movement Mouse Keybinds 0 Fullscreen 2 Font 12/Smallcaps Map View 41x27 Zoom Use 98% Tactical HUD 1 Map Filters NONE Filters NONE Steam 1 RUN: 6c13c281-f532-45ce-9c41-9f900af954c7